Cogmind - Beta 16 @@@ ROGUE MODE // 2026.01.12 @ 22:16:13 Player: void Result: Self-destructed Performance ------------- Evolutions (1) 500 Regions Visited (2) 400 Robots Destroyed (18) 90 Value Destroyed (313) 313 Prototype IDs (0) 0 Alien Tech Used (0) 0 Bonus (0) 0 TOTAL SCORE: 1303 Bonus ------- None Cogmind --------- Core Integrity 242/400 Matter 165/300 Energy 250/250 System Corruption 0% Temperature Cool (0) Movement Walking (260) Ox2 Location -9/Materials Parts ------- > --- POWER (1) -------- Ion Engine > --- PROPULSION (2) --- Aluminum Leg > --- UTILITY (4) ------ Medium Storage Unit Improved Terrain Scanner > --- WEAPON (2) ------- Medium Laser Grenade Launcher > --- INVENTORY (10) --- Ion Engine Aluminum Leg Improved Aluminum Leg Cooling System Cooling System Small Storage Unit Heavy EM Shotgun Medium Laser Assault Rifle Peak State ------------ > --- POWER ------------ Ion Engine > --- PROPULSION ------- Aluminum Leg Aluminum Leg > --- UTILITY ---------- Medium Storage Unit Improved Terrain Scanner Seismic Detector > --- WEAPON ----------- Medium Laser Assault Rifle > --- INVENTORY -------- Ion Engine Aluminum Leg Aluminum Leg Cooling System Cooling System Small Storage Unit Medium Laser Grenade Launcher [Rating: 11] Favorites ----------- Power Ion Engine Engine Ion Engine Propulsion Aluminum Leg Leg Aluminum Leg Utility Seismic Detector Device Seismic Detector Storage Medium Storage Unit Weapon Medium Laser Energy Gun Medium Laser Ballistic Gun Assault Rifle Launcher Grenade Launcher Build | -11 -10 -9 ------- Run | Yrd Mat Mat Slots Evolved 2 | . . 2 Power . | . . . Propulsion . | . . . Utility 2 | . . 2 Weapon . | . . . Parts Attached 14 | 9 1 4 Power 2 | 1 . 1 Engine 2 | 1 . 1 Core . | . . . Reactor . | . . . Propulsion 3 | 2 . 1 Treads . | . . . Leg 3 | 2 . 1 Wheel . | . . . Hover . | . . . Flight . | . . . Utility 4 | 3 1 . Device 2 | 2 . . Storage 2 | 1 1 . Processor . | . . . Hackware . | . . . Protection . | . . . Artifact . | . . . Weapon 5 | 3 . 2 Energy Gun 3 | 2 . 1 Energy Cannon . | . . . Ballistic Gun 1 | 1 . . Ballistic Cannon . | . . . Launcher 1 | . . 1 Special Weapon . | . . . Impact Weapon . | . . . Slashing Weapon . | . . . Piercing Weapon . | . . . Special Melee Weapon . | . . . Unidentified Prototypes . | . . . Parts Lost 2 | . . 2 Power . | . . . Propulsion 1 | . . 1 Utility 1 | . . 1 Weapon . | . . . Highest Loss Streak 2 | . . 2 To Critical Strikes . | . . . Average Backups 4 | 1 2 7 Power . | . 1 1 Propulsion . | . . 1 Utility 1 | . 1 2 Weapon 1 | . . 2 Tool/Special . | . . . Unused Backups 5 | . . 5 Power . | . . . Propulsion 2 | . . 2 Utility 2 | . . 2 Weapon 1 | . . 1 Tool/Special . | . . . Average Slot Usage (%) 89 | . 100 83 Engine 12 | . 14 11 Leg 21 | . 28 17 Device 18 | . 14 21 Storage 12 | . 14 11 Energy Gun 12 | . 14 11 Ballistic Gun 10 | . 14 7 Launcher 1 | . . 2 Peak Build Rating 11 | 9 7 11 Average Rating 8 | 5 7 10 On Entrance 4 | . 7 7 Avg Prop Armor Cover (%) . | . . . Naked Turns . | . . . Heaviest Build 22 | 15 20 22 Greatest Support 20 | 20 20 20 Greatest Overweight (x) 2 | . . 2 Average Overweight (x) . | . . 1 Largest Inventory Capacity 10 | 8 10 10 Average Capacity 8 | 7 8 10 Most Carried 10 | 2 5 10 Average Carried 4 | 1 2 7 Final Capacity 10 | 8 10 10 Final Carried 9 | 2 5 9 Class Distribution -------------------- 100% | Mutant Dominant Class ---------------- Mutant | -10/Materials Mutant | -9/Materials Resources | -11 -10 -9 ----------- Run | Yrd Mat Mat Matter Collected 353 | 262 53 38 Remotely . | . . . Salvage Created 383 | 65 18 300 Parts 30 | 6 2 22 Haulers Intercepted 1 | . . 1 Recyclers Shooed . | . . . Parts Field Recycled . | . . . Retrieved Matter . | . . . Parts Self-Destructed . | . . . Prevented . | . . . Parts Restored . | . . . Kills | -11 -10 -9 ------- Run | Yrd Mat Mat Combat Hostiles Destroyed 11 | . . 11 Guns 4 | . . 4 AOE 6 | . . 6 Classes Destroyed 8 | 1 1 6 Tunneler 4 | 4 . . Hauler 1 | . . 1 Mechanic 1 | . . 1 Operator 1 | . 1 . Swarmer 6 | . . 6 Grunt 3 | . . 3 Duelist 1 | . . 1 Sentry 1 | . . 1 Best Kill Streak 4 | 3 1 4 Combat Bots Only 4 | . . 4 Max Kills in Single Turn 3 | 2 1 3 Gunslinging . | . . . Exploded 2 | . . 2 Melee . | . . . Uniques/NPCs Destroyed . | . . . Combat | -11 -10 -9 -------- Run | Yrd Mat Mat Hostile Shots Fired 80 | . . 80 Missed 27 | . . 27 Hits 53 | . . 53 Melee 3 | . . 3 Projectile 50 | . . 50 Critical Strikes 1 | . . 1 Damage Taken 618 | . . 618 Core 158 | . . 158 Absorbed by Shields . | . . . Core Remaining (%) 100 | 100 100 . Volleys Fired 34 | 4 1 29 Largest 2 | 2 2 2 Hottest 100 | 70 70 100 Shots Fired 58 | 8 2 48 Gun 50 | 8 2 40 Cannon . | . . . Launcher 8 | . . 8 Special . | . . . Kinetic 16 | 4 1 11 Thermal 34 | 4 1 29 Explosive 8 | . . 8 Electromagnetic . | . . . Robot Hit Streak 9 | 3 3 9 Robot Miss Streak 5 | 1 . 5 Penetration Max . | . . . Secondary Targets 1 | . . 1 Max Gunslinging Chain 1 | . . 1 Shots Hit Robots 33 | 5 2 26 Core Hits 26 | 4 2 20 Critical Kills . | . . . Critical Parts Destroyed . | . . . Critical Strikes 2 | . . 2 Burn 2 | . . 2 Melee Attacks . | . . . Impact . | . . . Slashing . | . . . Piercing . | . . . Sneak Attacks . | . . . Combat Hostiles . | . . . Follow-up Attacks . | . . . Damage Inflicted 862 | 73 26 763 Guns 380 | 73 26 281 Cannons . | . . . Explosions 482 | . . 482 Melee . | . . . Ramming . | . . . Kinetic 170 | 36 13 121 Thermal 210 | 37 13 160 Explosive 482 | . . 482 Electromagnetic . | . . . Impact . | . . . Slashing . | . . . Piercing . | . . . Highest Corruption . | . . . Average Corruption . | . . . Corruption Purged . | . . . Corruption Blocked . | . . . Overload Shots . | . . . Overflow Damage . | . . . Projectiles . | . . . Explosions . | . . . Melee . | . . . Knockbacks . | . . . Impact . | . . . Kinetic . | . . . Secondary . | . . . Self-Inflicted Damage . | . . . Shots . | . . . Rammed . | . . . Targets Rammed . | . . . Kicked . | . . . Crushed . | . . . Highest Temperature 198 | 18 9 198 Average Temperature 43 | 8 6 51 Received Heat Transfer 138 | . . 138 Siege Activations . | . . . Martial Activations . | . . . Shielding Activations . | . . . Robots Disrupted . | . . . Combat Hostiles . | . . . Robots Corrupted . | . . . Combat Hostiles . | . . . Parts Fried . | . . . Impact Corruptions . | . . . Robots Melted 1 | . . 1 Combat Hostiles 1 | . . 1 Parts Melted 1 | . . 1 Heat Transferred 777 | 111 37 629 Parts Sabotaged . | . . . Parts Stolen . | . . . Parts Stripped . | . . . Power Chain Reactions . | . . . Alert | -11 -10 -9 ------- Run | Yrd Mat Mat Maximum Alert Level 1 | . . 1 Low Security (%) 98 | 100 100 97 Level 1 1 | . . 2 Level 2 . | . . . Level 3 . | . . . Level 4 . | . . . Level 5 . | . . . High Security . | . . . Max Security . | . . . Peak Influence 201 | 15 8 201 Initial 3 | . 3 . Average 31 | 2 . 56 Influence Increases 334 | 20 5 309 Destroy 0b10 Robot/C 220 | . . 220 Destroy 0b10 Robot/NC 35 | 20 5 10 Destroy Leader 42 | . . 42 Successful Hack 7 | . . 7 Destroy Structure 30 | . . 30 Influence Decreases 153 | 15 10 128 Entered New Map 2 | . 2 . Time Decay 131 | 15 8 108 Lost Part 20 | . . 20 Squads Dispatched 2 | . 1 1 Investigation 2 | . 1 1 Extermination . | . . . Reinforcement . | . . . Assault . | . . . Garrison . | . . . Intercept . | . . . Searches Triggered . | . . . Construction Impeded . | . . . Haulers Reinforced . | . . . Active Scanning Responses . | . . . Cargo Convoy Interrupts . | . . . Stealth | -11 -10 -9 --------- Run | Yrd Mat Mat Distress Signals 2 | . . 2 Communications Jammed . | . . . Distress Signals . | . . . Times Spotted 17 | . 2 15 Peak Tracking Total 6 | . 1 6 Tactical Retreats . | . . . Traps | -11 -10 -9 ------- Run | Yrd Mat Mat Traps Triggered . | . . . Indirectly . | . . . Trap Hack Attempts . | . . . Triggered . | . . . Disarmed . | . . . Reprogrammed . | . . . Reused . | . . . Traps Extracted . | . . . Installed . | . . . Triggered . | . . . Machines | -11 -10 -9 ---------- Run | Yrd Mat Mat Machines Disabled . | . . . Max in Single Turn . | . . . Machines Repaired . | . . . Machines Dismantled . | . . . Machines Sabotaged . | . . . Overloaded Fab Kills . | . . . Hacking | -11 -10 -9 --------- Run | Yrd Mat Mat Machines Accessed 4 | . 1 3 Terminals 4 | . 1 3 Fabricators . | . . . Repair Stations . | . . . Recycling Units . | . . . Scanalyzers . | . . . Garrison Access . | . . . Total Hacks 6 | . 1 5 Successful 2 | . . 2 Failed 4 | . 1 3 Catastrophic 1 | . 1 . Database Lockouts . | . . . Manual 5 | . 1 4 Terminals 6 | . 1 5 Fabricators . | . . . Repair Stations . | . . . Recycling Units . | . . . Scanalyzers . | . . . Garrison Access . | . . . Terminal Hacks 2 | . . 2 Branch Access Points 1 | . . 1 Recall Investigation 1 | . . 1 Fabricator Hacks . | . . . Repair Station Hacks . | . . . Recycling Unit Hacks . | . . . Scanalyzer . | . . . Garrison Access Hacks . | . . . Unauthorized Hacks . | . . . Terminals . | . . . Fabricators . | . . . Repair Stations . | . . . Recycling Units . | . . . Scanalyzers . | . . . Garrison Access . | . . . Data Cores Recovered 1 | . 1 . Used 1 | . 1 . Hacking Detections 2 | . 1 1 Full Trace Events 1 | . . 1 Feedback Events . | . . . Feedback Blocked . | . . . Robot Schematics Acquired . | . . . Robots Built . | . . . Authchips . | . . . Time . | . . . Total Robot Build Rating . | . . . Part Schematics Acquired . | . . . Parts Built . | . . . Authchips . | . . . Time . | . . . Total Part Build Rating . | . . . Part Studies Acquired . | . . . Parts Repaired . | . . . Time . | . . . Parts Recycled . | . . . Recycled Matter . | . . . Retrieved Matter . | . . . Retrieved Components . | . . . Parts Scanalyzed . | . . . Part Schematics Acquired . | . . . Parts Damaged . | . . . Bothacking | -11 -10 -9 ------------ Run | Yrd Mat Mat Used RIF Installer . | . . . Robots Hacked . | . . . Non-combat . | . . . Combat . | . . . Robot Hacks Applied . | . . . Relay Couplers Released . | . . . Fabnet Peak Effective % . | . . . Robots Rewired . | . . . Allies Hacked . | . . . Hacks Repelled . | . . . Allies | -11 -10 -9 -------- Run | Yrd Mat Mat Total Allies . | . . . Largest Group . | . . . Highest-Rated Group . | . . . Highest-Rated Ally . | . . . Total Orders . | . . . Ally Attacks . | . . . Total Damage . | . . . Kills . | . . . Allies Corrupted . | . . . Allies Melted . | . . . Intel | -11 -10 -9 ------- Run | Yrd Mat Mat Active Infowar (turns) 445 | 17 146 282 Terrain 283 | 1 . 282 Seismic 438 | 16 146 276 Robot Analysis Total . | . . . Derelict Logs Recovered . | . . . Drone Launches . | . . . Drone Recoveries . | . . . Exploration | -11 -10 -9 ------------- Run | Yrd Mat Mat Turns Passed 524 | 96 146 282 Spaces Moved 251 | 59 106 86 Core 3 | 3 . . Treads . | . . . Legs 248 | 56 106 86 Wheels . | . . . Hover . | . . . Flight . | . . . Fastest Speed 50 | 50 120 190 Average Speed 148 | 116 120 205 Slowest Speed 260 | 120 120 260 Overloaded Moves . | . . . Propulsion Burnouts . | . . . Robots Hopped . | . . . Potential Cave-ins . | . . . Cave-ins Triggered . | . . . Exploration Rate (%) 14 | 4 23 17 Regions Visited 2 Branch Regions . Pre-discovered Areas . | . . . Known Exits Taken . | . . . Unknown Exits Taken 2 | 1 1 . Scrap Searched . | . . . Spaces Dug . | . . . Terrain Destroyed 28 | . . 28 Melee . | . . . Projectile . | . . . AOE 28 | . . 28 Terrain Rammed . | . . . Walls Destroyed . | . . . Machines Disabled . | . . . Actions | -11 -10 -9 --------- Run | Yrd Mat Mat Total 336 | 74 122 140 Wait 25 | . 13 12 Move 249 | 58 105 86 Hop . | . . . Pick Up 9 | 1 2 6 Fast Attach 9 | 9 . . Attach 2 | . . 2 Detach 1 | 1 . . Swap 6 | . 1 5 Drop 1 | 1 . . Fire 34 | 4 1 29 Melee . | . . . Ram . | . . . Kick . | . . . Crush . | . . . Escape Stasis . | . . . Rewire . | . . . Trap . | . . . Miscellaneous . | . . . Route ------- -11/Scrapyard -10/Materials -9/Materials (discovered 2 exits: Min x2) History --------- Turn | Location | Event 7 | -11/Scrapyard | Discovered new exit (range 15) 97 | -11/Scrapyard | Entered Materials 98 | -10/Materials | Met a group of wandering Federalists 193 | -10/Materials | Discovered new exit (range 13) 243 | -10/Materials | Entered another Materials area 243 | -9/Materials | Evolved 2 slots: Utility x2 302 | -9/Materials | Build established: Mutant 354 | -9/Materials | Identified exit to Mines 525 | -9/Materials | Self-destructed Last Messages --------------- 00462_ R-06 Scavenger collects Lgt. Assault Rifle. 00463_ Y-45 Defender heat damages core (-4). 00463_ Heat Sink melted. 00467_ Acquired Prototype Energy Gun. 00467_ R-06 Scavenger collects Flight Unit. 00468_ K-01 Serf collects debris. 00482_ U-05 Engineer lays Concrete. 00484_ U-05 Engineer builds a Wall. 00485_ U-05 Engineer lays Concrete. 00487_ U-05 Engineer builds a Wall. 00494_ U-05 Engineer lays Concrete. 00499_ Aluminum Leg destroyed. 00501_ Destroyed Flight Unit. 00501_ S-10 Pest destroyed. 00511_ M-13 Machinist destroyed. 00511_ S-10 Pest destroyed. 00518_ R-06 Scavenger collects Machine Analyzer. 00519_ Seismic Detector destroyed. 00522_ R-06 Scavenger collects Recalibrator. 00523_ U-05 Engineer lays Concrete. Map ----- +----------------------------------------------------+ | ??????????????????#??????????????????????????????? | | ?????????"???????????#??????#????????????????????? | | ?????????????????????? ??????????????????????????? | | ????????????????? ? ?????????????>?????????????? | | ???????????# ???????? ??????????????????????????? | | ???? ????????????#??#????????????????????????????? | | ?#??????""??#????????????????#???##??????????????? | | ???????????#?????????#?#??#????????? ?? ?????????? | | ???????????#####?????????###?#???????????????????? | | ???????????#"""????#########???#???? ""??????????? | | ?#?????????#"R"????#==[[//#??#?#???#?????????????? | | ??#??????###" "#####==[ //#??????????????????????? | | #?#???#?## # #???#??????????????????? | | ??##### # ! # ### ### #####??????????? | | ??# # =^%[%= ?????????? | | ??# # % ^ =[ ?????????? | | ??# "" #% %#% ^= ?????????? | | ??# "T + ################??????????? | | #?# "" # #??#???#####??????????????? | | ?## % # #???????#?????#???????????? | | #####+# ########## ############## ???????? | | !*! ???????? | | *!u ???????? | | *]= !! T ???????? | | *% ######## ???????? | | """ """ """ u @ #???????????????????? | | """ """ """ #???????????????????? | | """ """ """ #??? ???????????????? | | #???????????????????? | | #???????????????????? | | u =%s ??????????????????? | | *% ###?????????????????? | | #"T"########### r #???????????????????? | | #"""#??????#? %r # k#???????????????????? | | #####???#??? """ *** # ##??????????????????? | | ###????#?????#?""" *** # #???????????????????? | | ?????????#??????"" ** # #???????????????????? | | ????????????????? # #???????????????????? | | ?????????????????? a ?? #???????????????????? | | ??????????#?#???????? ?? #???????????????????? | | ????#??????????????????? ?????????????????????? | | ?????????????????????????????????????????????????? | | ????#????????????????????????????????????????????? | | ?????????????????????????????????????????????????? | | ?#???????????????????????????????????????????????? | | ?????????????????????????????????????????????????? | | ?????????????????????????????????????????????????? | | ?????????????????????????????????????????????????? | | ?????????????????????????????????????????????????? | | ?????????????????????????????????????????????????? | +----------------------------------------------------+ Best States ------------- Heat Dissipation 28 Energy Generation 10 Energy Capacity 250 Matter Stores 290 Matter Capacity 300 Sight Range 16 Terrain Scan Range 16 Terrain Scan Density 10 Evasion (%) 55 Item Schematics ----------------- None Robot Schematics ------------------ None Fabricated ------------ Nothing Repaired ---------- Nothing Studied --------- None Alien Tech Used ----------------- None Achievements -------------- None Challenges ------------ None Game ------ Seed PortableCompositeSystem Manual? 0 Play Time 00:09:26 Cumulative 59.4 hours Start 2026.01.03 @ 23:15:42 End 2026.01.12 @ 22:16:13 Sessions 5 Manual Loads 0 Difficulty Rogue Special Mode None Game No. 99 Rogue 85 Adventurer 13 Explorer 1 Win Type - Total 0 Types 0/0/0/0/0/0/0/0/0/0 Lore% 9 Gallery% 32 Achievement% 17 Wizard Run 0 Options --------- Layout 0 ASCII 0 Keyboard 0 Movement Mouse Keybinds 0 Fullscreen 1 Font 18/SmallcapsGlow Map View 76x50 Zoom Use 96% Tactical HUD 1 Map Filters NONE Filters NONE Steam 1 RUN: 44d7fc64-a739-4767-8be7-8c262494223d